[Event "Early-Titled-Tuesday-Blitz-January-16-2024"]
[Site "Chess.com"]
[Date "2024.01.16"]
[Round "8"]
[White "ilqar_74"]
[Black "mishanick"]
[Result "0-1"]
[WhiteElo "2815"]
[BlackElo "3082"]
[TimeControl "180+1"]
[EndTime "9:32:21 PST"]
[Termination "mishanick won by resignation"]

1. e4 {[%clk 0:03:00.9]} 1... c5 {[%clk 0:02:59.8]} 2. Nf3 {[%clk 0:03:00.5]}
2... d6 {[%clk 0:03:00.4]} 3. d4 {[%clk 0:03:01.2]} 3... cxd4 {[%clk 0:03:01.3]}
4. Nxd4 {[%clk 0:03:02]} 4... Nf6 {[%clk 0:03:02]} 5. Nc3 {[%clk 0:03:02.3]}
5... a6 {[%clk 0:03:02.4]} 6. a3 {[%clk 0:03:02.6]} 6... e5 {[%clk 0:02:59.7]}
7. Nf5 {[%clk 0:03:02.8]} 7... d5 {[%clk 0:02:59.7]} 8. Bg5 {[%clk 0:03:02.7]}
8... d4 {[%clk 0:02:59.6]} 9. Bxf6 {[%clk 0:03:03]} 9... gxf6 {[%clk 0:02:58.9]}
10. Nb1 {[%clk 0:03:03.4]} 10... Qb6 {[%clk 0:02:57.5]} 11. Nd2 {[%clk
0:03:01.8]} 11... Qxb2 {[%clk 0:02:54.3]} 12. Bc4 {[%clk 0:03:01.7]} 12... h5
{[%clk 0:02:47.1]} 13. O-O {[%clk 0:02:51.6]} 13... Qb6 {[%clk 0:02:46.6]} 14.
Rb1 {[%clk 0:02:48.9]} 14... Qc7 {[%clk 0:02:45.7]} 15. Bb3 {[%clk 0:02:48.7]}
15... Be6 {[%clk 0:02:43.8]} 16. Qe2 {[%clk 0:02:45.8]} 16... Nd7 {[%clk
0:02:43.3]} 17. Rfc1 {[%clk 0:02:43.2]} 17... Nc5 {[%clk 0:02:41.9]} 18. Bxe6
{[%clk 0:02:43.2]} 18... fxe6 {[%clk 0:02:40.9]} 19. Nh4 {[%clk 0:02:43.5]}
19... Kf7 {[%clk 0:02:36.6]} 20. Qf3 {[%clk 0:02:12.8]} 20... b5 {[%clk
0:02:23.4]} 21. c3 {[%clk 0:02:05.4]} 21... d3 {[%clk 0:02:22.8]} 22. c4 {[%clk
0:01:56.3]} 22... Be7 {[%clk 0:02:11.1]} 23. cxb5 {[%clk 0:01:50.1]} 23... axb5
{[%clk 0:02:12]} 24. Qxd3 {[%clk 0:01:47.6]} 24... Qd8 {[%clk 0:01:49.9]} 25.
Qe3 {[%clk 0:01:22.3]} 25... Qd3 {[%clk 0:01:45.5]} 26. Qxd3 {[%clk 0:01:09.8]}
26... Nxd3 {[%clk 0:01:46.4]} 27. Rc3 {[%clk 0:01:08.3]} 27... Nf4 {[%clk
0:01:40.9]} 28. Rc7 {[%clk 0:00:58.3]} 28... Rhc8 {[%clk 0:01:35.9]} 29. Rxc8
{[%clk 0:00:55.1]} 29... Rxc8 {[%clk 0:01:36.8]} 30. g3 {[%clk 0:00:53.6]} 30...
Ne2+ {[%clk 0:01:35.5]} 31. Kf1 {[%clk 0:00:53.4]} 31... Nd4 {[%clk 0:01:35.3]}
32. Nb3 {[%clk 0:00:53.8]} 32... Nc2 {[%clk 0:01:32.5]} 33. Nd2 {[%clk
0:00:45.4]} 33... Nxa3 {[%clk 0:01:32.1]} 34. Rb3 {[%clk 0:00:45.3]} 34... b4
{[%clk 0:01:32.4]} 35. Nhf3 {[%clk 0:00:45.3]} 35... Nb5 {[%clk 0:01:29.6]} 36.
Ke2 {[%clk 0:00:42.9]} 36... Nd4+ {[%clk 0:01:28.9]} 37. Nxd4 {[%clk 0:00:42.6]}
37... exd4 {[%clk 0:01:29.8]} 38. Kd3 {[%clk 0:00:42.7]} 38... e5 {[%clk
0:01:30.4]} 39. Nc4 {[%clk 0:00:41.4]} 39... Ra8 {[%clk 0:01:29.2]} 40. Nb6
{[%clk 0:00:39.9]} 40... Ra2 {[%clk 0:01:26.5]} 41. f4 {[%clk 0:00:25.9]} 41...
Rxh2 {[%clk 0:01:25.5]} 42. fxe5 {[%clk 0:00:26.3]} 42... fxe5 {[%clk
0:01:26.4]} 43. Kc4 {[%clk 0:00:26.2]} 43... Ke6 {[%clk 0:01:25.6]} 44. Nd5
{[%clk 0:00:26.4]} 44... Rc2+ {[%clk 0:01:25.1]} 45. Kd3 {[%clk 0:00:23.8]}
45... Rg2 {[%clk 0:01:25.4]} 46. Kc4 {[%clk 0:00:23.9]} 46... Bd6 {[%clk
0:01:23.1]} 47. Rf3 {[%clk 0:00:24.2]} 47... Rc2+ {[%clk 0:01:16]} 48. Kb5
{[%clk 0:00:24.3]} 48... Be7 {[%clk 0:01:12.3]} 49. Nxe7 {[%clk 0:00:20.1]}
49... Kxe7 {[%clk 0:01:12.3]} 50. Kxb4 {[%clk 0:00:20.7]} 50... Ke6 {[%clk
0:01:09.9]} 51. Rf5 {[%clk 0:00:19]} 51... Re2 {[%clk 0:01:07.7]} 52. Rxh5
{[%clk 0:00:18.6]} 52... Rxe4 {[%clk 0:01:08.4]} 53. Kc4 {[%clk 0:00:19.1]}
53... Re3 {[%clk 0:01:08.4]} 54. Rh6+ {[%clk 0:00:19.1]} 54... Kf5 {[%clk
0:01:08.9]} 55. Kd5 {[%clk 0:00:14.4]} 55... d3 {[%clk 0:01:08.6]} 56. Rh5+
{[%clk 0:00:14.8]} 56... Kg4 {[%clk 0:01:08.5]} 57. Rh1 {[%clk 0:00:15]} 57...
d2 {[%clk 0:01:08]} 58. Rd1 {[%clk 0:00:13.9]} 58... Re2 {[%clk 0:01:08.5]} 59.
Kc4 {[%clk 0:00:11.4]} 59... e4 {[%clk 0:01:08.8]} 60. Kd4 {[%clk 0:00:11.2]}
60... e3 {[%clk 0:01:09.2]} 0-1

[Event "Early-Titled-Tuesday-Blitz-January-16-2024"]
[Site "Chess.com"]
[Date "2024.01.16"]
[Round "8"]
[White "Doublekk14"]
[Black "noblerone"]
[Result "1-0"]
[WhiteElo "2283"]
[BlackElo "2507"]
[TimeControl "180+1"]
[EndTime "9:32:21 PST"]
[Termination "Doublekk14 won on time"]

1. c4 {[%clk 0:01:42.4]} 1... c6 {[%clk 0:02:56.1]} 2. e4 {[%clk 0:01:35.5]}
2... d5 {[%clk 0:02:57]} 3. exd5 {[%clk 0:01:35.3]} 3... cxd5 {[%clk 0:02:57.6]}
4. d4 {[%clk 0:01:32.9]} 4... Nf6 {[%clk 0:02:53.7]} 5. Nc3 {[%clk 0:01:32.8]}
5... Nc6 {[%clk 0:02:41.3]} 6. Nf3 {[%clk 0:01:31.8]} 6... e6 {[%clk 0:02:40.7]}
7. Be2 {[%clk 0:01:30.7]} 7... dxc4 {[%clk 0:02:36.5]} 8. Bxc4 {[%clk
0:01:29.8]} 8... Be7 {[%clk 0:02:34.1]} 9. O-O {[%clk 0:01:29.4]} 9... O-O
{[%clk 0:02:34.6]} 10. h3 {[%clk 0:01:24.1]} 10... a6 {[%clk 0:02:00.5]} 11. a4
{[%clk 0:01:20.7]} 11... b6 {[%clk 0:01:59.8]} 12. Be3 {[%clk 0:01:18.4]} 12...
Bb7 {[%clk 0:02:00.1]} 13. Ne5 {[%clk 0:01:10.7]} 13... Nb4 {[%clk 0:01:55.7]}
14. Be2 {[%clk 0:01:06.6]} 14... Nbd5 {[%clk 0:01:48.3]} 15. Bf3 {[%clk
0:01:05.8]} 15... Rc8 {[%clk 0:01:44.6]} 16. Qb3 {[%clk 0:01:00.7]} 16... Qc7
{[%clk 0:01:16]} 17. Rac1 {[%clk 0:00:59]} 17... Qb8 {[%clk 0:01:13.6]} 18. Nxd5
{[%clk 0:00:52.9]} 18... Bxd5 {[%clk 0:00:48.3]} 19. Bxd5 {[%clk 0:00:51.6]}
19... exd5 {[%clk 0:00:36.6]} 20. Nc6 {[%clk 0:00:48.2]} 20... Qb7 {[%clk
0:00:34.9]} 21. Nxe7+ {[%clk 0:00:47.7]} 21... Qxe7 {[%clk 0:00:35.8]} 22. Qxb6
{[%clk 0:00:47.3]} 22... Rb8 {[%clk 0:00:29.9]} 23. Qxa6 {[%clk 0:00:45.7]}
23... Rxb2 {[%clk 0:00:30]} 24. Rc8 {[%clk 0:00:44.5]} 24... Rb8 {[%clk
0:00:28.3]} 25. Rfc1 {[%clk 0:00:43.4]} 25... h6 {[%clk 0:00:27.3]} 26. Rxb8
{[%clk 0:00:43.1]} 26... Rxb8 {[%clk 0:00:28.1]} 27. Rc8+ {[%clk 0:00:42.9]}
27... Rxc8 {[%clk 0:00:28.6]} 28. Qxc8+ {[%clk 0:00:42.6]} 28... Kh7 {[%clk
0:00:29.5]} 29. Qf5+ {[%clk 0:00:41.6]} 29... g6 {[%clk 0:00:28.5]} 30. Qe5
{[%clk 0:00:42.2]} 30... Qd8 {[%clk 0:00:25]} 31. a5 {[%clk 0:00:36.4]} 31...
Ne4 {[%clk 0:00:20.4]} 32. f3 {[%clk 0:00:35.6]} 32... Nc3 {[%clk 0:00:18.8]}
33. a6 {[%clk 0:00:29.6]} 33... Qa5 {[%clk 0:00:15.6]} 34. Qf6 {[%clk 0:00:28]}
34... Kg8 {[%clk 0:00:12.7]} 35. Bxh6 {[%clk 0:00:24.2]} 35... Ne2+ {[%clk
0:00:12.3]} 36. Kh2 {[%clk 0:00:22.5]} 36... Qc7+ {[%clk 0:00:11.2]} 37. f4
{[%clk 0:00:22.7]} 1-0

[Event "Early-Titled-Tuesday-Blitz-January-16-2024"]
[Site "Chess.com"]
[Date "2024.01.16"]
[Round "8"]
[White "Viktor_Poddubnyi"]
[Black "N4700000"]
[Result "0-1"]
[WhiteElo "2287"]
[BlackElo "2422"]
[TimeControl "180+1"]
[EndTime "9:32:21 PST"]
[Termination "N4700000 won on time"]

1. e4 {[%clk 0:03:00.9]} 1... e6 {[%clk 0:02:59.1]} 2. d4 {[%clk 0:03:00.4]}
2... d5 {[%clk 0:02:58.9]} 3. Nd2 {[%clk 0:03:01.1]} 3... c5 {[%clk 0:02:57]} 4.
exd5 {[%clk 0:03:00.9]} 4... Qxd5 {[%clk 0:02:55]} 5. Ngf3 {[%clk 0:03:00.7]}
5... cxd4 {[%clk 0:02:51.9]} 6. Bc4 {[%clk 0:03:01.4]} 6... Qd6 {[%clk
0:02:51.6]} 7. O-O {[%clk 0:03:02]} 7... Nf6 {[%clk 0:02:50.8]} 8. Nb3 {[%clk
0:03:02.6]} 8... Nc6 {[%clk 0:02:50.1]} 9. Nbxd4 {[%clk 0:03:03]} 9... Nxd4
{[%clk 0:02:49.4]} 10. Qxd4 {[%clk 0:03:03.9]} 10... Qxd4 {[%clk 0:02:43.3]} 11.
Nxd4 {[%clk 0:03:04.8]} 11... Bc5 {[%clk 0:02:42.7]} 12. Nb3 {[%clk 0:03:04.1]}
12... Bb6 {[%clk 0:02:36.9]} 13. a4 {[%clk 0:03:03.6]} 13... a6 {[%clk
0:02:30.4]} 14. a5 {[%clk 0:03:02.6]} 14... Ba7 {[%clk 0:02:30.2]} 15. Be2
{[%clk 0:02:45.3]} 15... Bd7 {[%clk 0:02:19.5]} 16. Bf3 {[%clk 0:02:45.4]} 16...
Bc6 {[%clk 0:02:15.7]} 17. Bxc6+ {[%clk 0:02:45.7]} 17... bxc6 {[%clk
0:02:16.6]} 18. Be3 {[%clk 0:02:39.1]} 18... Bxe3 {[%clk 0:02:01.9]} 19. fxe3
{[%clk 0:02:40]} 19... Nd5 {[%clk 0:02:01.7]} 20. Kf2 {[%clk 0:02:20.9]} 20...
Ke7 {[%clk 0:01:56.4]} 21. Rfd1 {[%clk 0:02:20.5]} 21... Rhb8 {[%clk 0:01:49.9]}
22. e4 {[%clk 0:01:54.3]} 22... Nb4 {[%clk 0:01:46.1]} 23. Nd4 {[%clk
0:01:37.1]} 23... c5 {[%clk 0:01:35.4]} 24. Ne2 {[%clk 0:01:01.3]} 24... Nxc2
{[%clk 0:01:07.8]} 25. Rac1 {[%clk 0:01:01.3]} 25... Rxb2 {[%clk 0:01:02.7]} 26.
Rd2 {[%clk 0:01:01.1]} 26... Nb4 {[%clk 0:01:02.6]} 27. Rxb2 {[%clk 0:00:55.7]}
27... Nd3+ {[%clk 0:01:02.9]} 28. Ke3 {[%clk 0:00:51]} 28... Nxb2 {[%clk
0:01:03.8]} 29. Rxc5 {[%clk 0:00:49.3]} 29... Ra7 {[%clk 0:00:57.2]} 30. Nd4
{[%clk 0:00:20.5]} 30... Kd7 {[%clk 0:00:53.2]} 31. Nc6 {[%clk 0:00:12.9]} 31...
Rb7 {[%clk 0:00:40.9]} 32. Nd4 {[%clk 0:00:05.7]} 32... Rc7 {[%clk 0:00:35.2]}
33. Rg5 {[%clk 0:00:04.3]} 33... g6 {[%clk 0:00:34.2]} 34. h4 {[%clk 0:00:04.6]}
34... h6 {[%clk 0:00:32.7]} 35. Rg3 {[%clk 0:00:02.7]} 35... Rc3+ {[%clk
0:00:31.7]} 36. Kf2 {[%clk 0:00:02.3]} 36... Nd1+ {[%clk 0:00:30.1]} 0-1

[Event "Early-Titled-Tuesday-Blitz-January-16-2024"]
[Site "Chess.com"]
[Date "2024.01.16"]
[Round "8"]
[White "Buzhizhebuguai"]
[Black "baki83"]
[Result "0-1"]
[WhiteElo "2672"]
[BlackElo "2862"]
[TimeControl "180+1"]
[EndTime "9:32:23 PST"]
[Termination "baki83 won by resignation"]

1. Nf3 {[%clk 0:03:00.9]} 1... d5 {[%clk 0:02:57.3]} 2. g3 {[%clk 0:03:00.9]}
2... Nf6 {[%clk 0:02:55.4]} 3. Bg2 {[%clk 0:03:01.1]} 3... c5 {[%clk 0:02:55.2]}
4. O-O {[%clk 0:03:00.7]} 4... Nc6 {[%clk 0:02:55.4]} 5. c4 {[%clk 0:03:01.1]}
5... d4 {[%clk 0:02:55.2]} 6. e3 {[%clk 0:03:00.9]} 6... e5 {[%clk 0:02:54.5]}
7. exd4 {[%clk 0:03:01.3]} 7... exd4 {[%clk 0:02:54.8]} 8. d3 {[%clk 0:02:59]}
8... Be7 {[%clk 0:02:53]} 9. Bg5 {[%clk 0:02:56.6]} 9... O-O {[%clk 0:02:52.3]}
10. a3 {[%clk 0:02:56.7]} 10... Bf5 {[%clk 0:02:45.6]} 11. Nh4 {[%clk
0:02:43.8]} 11... Bg4 {[%clk 0:02:43.9]} 12. Bf3 {[%clk 0:02:43.8]} 12... Bh3
{[%clk 0:02:43]} 13. Bg2 {[%clk 0:02:43.9]} 13... Bg4 {[%clk 0:02:41.1]} 14. Bf3
{[%clk 0:02:43.8]} 14... Bd7 {[%clk 0:02:36.5]} 15. Nd2 {[%clk 0:02:25]} 15...
h6 {[%clk 0:02:34.7]} 16. Bxf6 {[%clk 0:02:24.6]} 16... Bxf6 {[%clk 0:02:35.1]}
17. Ng2 {[%clk 0:02:25.3]} 17... Ne5 {[%clk 0:02:30.7]} 18. Be4 {[%clk
0:02:23.4]} 18... Rb8 {[%clk 0:02:20.1]} 19. Nf4 {[%clk 0:02:07.2]} 19... Bg5
{[%clk 0:02:06.8]} 20. Nd5 {[%clk 0:02:03]} 20... f5 {[%clk 0:02:06.4]} 21. f4
{[%clk 0:01:58.3]} 21... fxe4 {[%clk 0:02:06.6]} 22. Nxe4 {[%clk 0:01:55.8]}
22... Bg4 {[%clk 0:01:47.6]} 23. Qa4 {[%clk 0:01:36.9]} 23... b5 {[%clk
0:01:15.5]} 24. Qxa7 {[%clk 0:01:31.8]} 24... bxc4 {[%clk 0:01:14.8]} 25. dxc4
{[%clk 0:01:22.3]} 25... Nf3+ {[%clk 0:00:39.3]} 26. Kg2 {[%clk 0:01:06.2]}
26... Qe8 {[%clk 0:00:20.7]} 27. Nf2 {[%clk 0:00:47.3]} 27... Qh5 {[%clk
0:00:10.6]} 28. h3 {[%clk 0:00:41.5]} 28... Rxb2 {[%clk 0:00:08.3]} 29. hxg4
{[%clk 0:00:41.6]} 29... Qxg4 {[%clk 0:00:08.3]} 30. Rab1 {[%clk 0:00:21.4]}
30... Bh4 {[%clk 0:00:07.3]} 31. Ne7+ {[%clk 0:00:15.9]} 31... Kh7 {[%clk
0:00:06.9]} 0-1

[Event "Early-Titled-Tuesday-Blitz-January-16-2024"]
[Site "Chess.com"]
[Date "2024.01.16"]
[Round "8"]
[White "chenxiaoyuer"]
[Black "inneremptiness"]
[Result "1/2-1/2"]
[WhiteElo "2744"]
[BlackElo "2881"]
[TimeControl "180+1"]
[EndTime "9:32:25 PST"]
[Termination "Game drawn by repetition"]

1. e4 {[%clk 0:02:58.9]} 1... e5 {[%clk 0:02:55.2]} 2. Nf3 {[%clk 0:02:56.4]}
2... Nc6 {[%clk 0:02:55.8]} 3. Bb5 {[%clk 0:02:56.1]} 3... Nf6 {[%clk
0:02:55.9]} 4. d3 {[%clk 0:02:55.1]} 4... Bc5 {[%clk 0:02:53.8]} 5. Bxc6 {[%clk
0:02:48.6]} 5... dxc6 {[%clk 0:02:52.6]} 6. O-O {[%clk 0:02:48.9]} 6... Bd6
{[%clk 0:02:49.3]} 7. Nbd2 {[%clk 0:02:31.8]} 7... Qe7 {[%clk 0:02:45.5]} 8. Nc4
{[%clk 0:02:29.3]} 8... h6 {[%clk 0:02:41.7]} 9. a4 {[%clk 0:02:27.8]} 9... a5
{[%clk 0:02:37.1]} 10. Bd2 {[%clk 0:02:20.3]} 10... b6 {[%clk 0:02:36.3]} 11.
Bc3 {[%clk 0:02:20.7]} 11... Bg4 {[%clk 0:02:31.7]} 12. h3 {[%clk 0:02:00.8]}
12... Bh5 {[%clk 0:02:20.9]} 13. g4 {[%clk 0:01:56.8]} 13... Nxg4 {[%clk
0:02:21.2]} 14. hxg4 {[%clk 0:01:57.7]} 14... Bxg4 {[%clk 0:02:22.1]} 15. Ne3
{[%clk 0:01:51.7]} 15... Bh5 {[%clk 0:02:20]} 16. Kg2 {[%clk 0:01:42.7]} 16...
Qf6 {[%clk 0:02:16]} 17. Rh1 {[%clk 0:01:38]} 17... g6 {[%clk 0:02:16.3]} 18.
Nc4 {[%clk 0:01:05.6]} 18... O-O-O {[%clk 0:02:01.4]} 19. Qe2 {[%clk 0:01:02.3]}
19... Qf4 {[%clk 0:01:55.1]} 20. Rh3 {[%clk 0:00:57.3]} 20... Bg4 {[%clk
0:01:48.6]} 21. Rg3 {[%clk 0:00:57.2]} 21... h5 {[%clk 0:01:49.4]} 22. Bd2
{[%clk 0:00:51.1]} 22... Bxf3+ {[%clk 0:01:44.7]} 23. Qxf3 {[%clk 0:00:49.1]}
23... Qxf3+ {[%clk 0:01:44.3]} 24. Rxf3 {[%clk 0:00:49.5]} 24... Rdf8 {[%clk
0:01:42]} 25. Bg5 {[%clk 0:00:48.6]} 25... f5 {[%clk 0:01:41.9]} 26. Nxd6+
{[%clk 0:00:46.8]} 26... cxd6 {[%clk 0:01:41.9]} 27. Be7 {[%clk 0:00:47.5]}
27... Re8 {[%clk 0:01:41.4]} 28. Bxd6 {[%clk 0:00:47.2]} 28... c5 {[%clk
0:01:32.5]} 29. exf5 {[%clk 0:00:39.6]} 29... Kd7 {[%clk 0:01:32.7]} 30. fxg6
{[%clk 0:00:38.7]} 30... Kxd6 {[%clk 0:01:33.2]} 31. Rf6+ {[%clk 0:00:37.4]}
31... Re6 {[%clk 0:01:33.6]} 32. Rxe6+ {[%clk 0:00:36.2]} 32... Kxe6 {[%clk
0:01:34.5]} 33. Kf3 {[%clk 0:00:32.5]} 33... Kf6 {[%clk 0:01:16.8]} 34. Rg1
{[%clk 0:00:28]} 34... Rg8 {[%clk 0:01:17.2]} 35. Rh1 {[%clk 0:00:25.7]} 35...
Rh8 {[%clk 0:00:52]} 36. Ke4 {[%clk 0:00:24.2]} 36... h4 {[%clk 0:00:51.9]} 37.
g7 {[%clk 0:00:20.1]} 37... Kxg7 {[%clk 0:00:50.2]} 38. Kxe5 {[%clk 0:00:20.5]}
38... Kg6 {[%clk 0:00:46.7]} 39. Kf4 {[%clk 0:00:20.3]} 39... Kh5 {[%clk
0:00:47]} 40. Kf3 {[%clk 0:00:18.4]} 40... Rf8+ {[%clk 0:00:46.1]} 41. Kg2
{[%clk 0:00:19]} 41... Kg4 {[%clk 0:00:46]} 42. Rh3 {[%clk 0:00:16.1]} 42...
Rxf2+ {[%clk 0:00:30.1]} 43. Kxf2 {[%clk 0:00:16.5]} 43... Kxh3 {[%clk 0:00:31]}
44. Kf3 {[%clk 0:00:17.1]} 44... Kh2 {[%clk 0:00:31.7]} 45. Kf2 {[%clk
0:00:17.6]} 45... Kh3 {[%clk 0:00:32]} 46. Kf3 {[%clk 0:00:17.9]} 46... Kh2
{[%clk 0:00:32.7]} 47. Kf2 {[%clk 0:00:18]} 47... Kh3 {[%clk 0:00:33.2]} 1/2-1/2

[Event "Early-Titled-Tuesday-Blitz-January-16-2024"]
[Site "Chess.com"]
[Date "2024.01.16"]
[Round "8"]
[White "finec2"]
[Black "DonJuanEGenaro"]
[Result "1-0"]
[WhiteElo "2311"]
[BlackElo "1885"]
[TimeControl "180+1"]
[EndTime "9:32:25 PST"]
[Termination "finec2 won on time"]

1. e4 {[%clk 0:03:00.9]} 1... c5 {[%clk 0:02:56]} 2. Nf3 {[%clk 0:03:00.1]} 2...
Nc6 {[%clk 0:02:54.2]} 3. d4 {[%clk 0:02:59]} 3... cxd4 {[%clk 0:02:52.5]} 4.
Nxd4 {[%clk 0:02:59.9]} 4... Nf6 {[%clk 0:02:51.9]} 5. Nc3 {[%clk 0:02:59.8]}
5... d6 {[%clk 0:02:51.9]} 6. Bc4 {[%clk 0:02:58.5]} 6... e6 {[%clk 0:02:47.2]}
7. Be3 {[%clk 0:02:58.1]} 7... a6 {[%clk 0:02:47.2]} 8. Bb3 {[%clk 0:02:55.1]}
8... Qc7 {[%clk 0:02:46.6]} 9. Qe2 {[%clk 0:02:53.8]} 9... b5 {[%clk 0:02:35.6]}
10. f3 {[%clk 0:02:46.2]} 10... Be7 {[%clk 0:02:23.4]} 11. O-O {[%clk
0:02:45.6]} 11... Na5 {[%clk 0:02:16.5]} 12. Rad1 {[%clk 0:02:45.2]} 12... Bb7
{[%clk 0:02:03.2]} 13. Rd2 {[%clk 0:02:22.3]} 13... d5 {[%clk 0:01:50.5]} 14.
exd5 {[%clk 0:02:15.6]} 14... Nxd5 {[%clk 0:01:31.2]} 15. Bxd5 {[%clk
0:02:13.1]} 15... exd5 {[%clk 0:01:25.4]} 16. Ndxb5 {[%clk 0:01:20.2]} 16...
axb5 {[%clk 0:01:16.3]} 17. Nxb5 {[%clk 0:01:21.1]} 17... Qd7 {[%clk 0:01:10.3]}
18. Bc5 {[%clk 0:01:12.9]} 18... O-O {[%clk 0:00:52.8]} 19. Bxe7 {[%clk
0:00:53.2]} 19... Rfe8 {[%clk 0:00:47.3]} 20. Re1 {[%clk 0:00:43.5]} 20... Nc4
{[%clk 0:00:46.2]} 21. Rd4 {[%clk 0:00:31.4]} 21... Qxb5 {[%clk 0:00:41.5]} 22.
Rg4 {[%clk 0:00:30.5]} 22... Qxb2 {[%clk 0:00:22.7]} 23. Qd3 {[%clk 0:00:17.6]}
23... Qb6+ {[%clk 0:00:13.2]} 24. Kh1 {[%clk 0:00:16.5]} 24... Qc7 {[%clk
0:00:11.4]} 25. Qd4 {[%clk 0:00:10.6]} 25... f6 {[%clk 0:00:08.1]} 26. Qxf6
{[%clk 0:00:08.7]} 26... Rxe7 {[%clk 0:00:08.1]} 27. Qxe7 {[%clk 0:00:08.7]}
27... Qxe7 {[%clk 0:00:06.5]} 28. Rxe7 {[%clk 0:00:09.6]} 28... Rxa2 {[%clk
0:00:03.7]} 29. h3 {[%clk 0:00:08.8]} 1-0

[Event "Early-Titled-Tuesday-Blitz-January-16-2024"]
[Site "Chess.com"]
[Date "2024.01.16"]
[Round "8"]
[White "vladislavkovalev"]
[Black "tteshan"]
[Result "0-1"]
[WhiteElo "2848"]
[BlackElo "2610"]
[TimeControl "180+1"]
[EndTime "9:32:26 PST"]
[Termination "tteshan won on time"]

1. e4 {[%clk 0:02:59.6]} 1... c5 {[%clk 0:03:00.2]} 2. Nf3 {[%clk 0:03:00]} 2...
Nc6 {[%clk 0:03:00.5]} 3. Bb5 {[%clk 0:02:59.1]} 3... e6 {[%clk 0:03:00.5]} 4.
O-O {[%clk 0:02:58.9]} 4... Nge7 {[%clk 0:02:59.8]} 5. Re1 {[%clk 0:02:59.2]}
5... a6 {[%clk 0:03:00]} 6. Bf1 {[%clk 0:02:59.9]} 6... d5 {[%clk 0:03:00.3]} 7.
exd5 {[%clk 0:03:00.8]} 7... Nxd5 {[%clk 0:03:01.2]} 8. d4 {[%clk 0:03:00.3]}
8... Nf6 {[%clk 0:03:01.6]} 9. Be3 {[%clk 0:02:45.5]} 9... cxd4 {[%clk
0:03:00.2]} 10. Nxd4 {[%clk 0:02:45.5]} 10... Bd7 {[%clk 0:03:00.3]} 11. c4
{[%clk 0:02:35.8]} 11... Be7 {[%clk 0:02:59.1]} 12. Nc3 {[%clk 0:02:35.9]} 12...
O-O {[%clk 0:02:58.9]} 13. Qb3 {[%clk 0:02:30.1]} 13... Nxd4 {[%clk 0:02:51.9]}
14. Bxd4 {[%clk 0:02:31]} 14... Bc6 {[%clk 0:02:51]} 15. Rad1 {[%clk 0:02:28.5]}
15... Qa5 {[%clk 0:02:47.9]} 16. Bb6 {[%clk 0:02:17.2]} 16... Qb4 {[%clk
0:02:44.3]} 17. g3 {[%clk 0:01:24.1]} 17... Qxb3 {[%clk 0:02:38.4]} 18. axb3
{[%clk 0:01:25]} 18... Bd8 {[%clk 0:02:34]} 19. Bc5 {[%clk 0:01:20.6]} 19... Re8
{[%clk 0:02:31.8]} 20. Bg2 {[%clk 0:01:16.6]} 20... Bxg2 {[%clk 0:02:27.2]} 21.
Kxg2 {[%clk 0:01:17.5]} 21... Bc7 {[%clk 0:02:26.1]} 22. b4 {[%clk 0:01:05.2]}
22... Rad8 {[%clk 0:02:19.8]} 23. b5 {[%clk 0:01:05.7]} 23... Ba5 {[%clk
0:01:55.7]} 24. b4 {[%clk 0:01:01.3]} 24... Bc7 {[%clk 0:01:54.1]} 25. bxa6
{[%clk 0:00:52.6]} 25... bxa6 {[%clk 0:01:55]} 26. f4 {[%clk 0:00:15.6]} 26...
Rd7 {[%clk 0:01:38.3]} 27. Rxd7 {[%clk 0:00:13.2]} 27... Nxd7 {[%clk 0:01:39.2]}
28. Be3 {[%clk 0:00:12.6]} 28... Rb8 {[%clk 0:01:35.5]} 29. Rd1 {[%clk 0:00:12]}
29... Nf6 {[%clk 0:01:32.2]} 30. b5 {[%clk 0:00:12.3]} 30... axb5 {[%clk
0:01:31.6]} 31. cxb5 {[%clk 0:00:10.6]} 31... Ba5 {[%clk 0:01:27.1]} 32. Bd4
{[%clk 0:00:07.6]} 32... Bxc3 {[%clk 0:01:23.9]} 33. Bxc3 {[%clk 0:00:08.5]}
33... Nd5 {[%clk 0:01:24.3]} 34. Be5 {[%clk 0:00:03.3]} 34... Rxb5 {[%clk
0:01:22.4]} 35. Rc1 {[%clk 0:00:04]} 35... f6 {[%clk 0:01:17.9]} 36. Rc8+ {[%clk
0:00:04.7]} 36... Kf7 {[%clk 0:01:17.8]} 37. Bd4 {[%clk 0:00:05.6]} 37... Rb7
{[%clk 0:01:09.6]} 38. Ra8 {[%clk 0:00:05.6]} 38... Rc7 {[%clk 0:01:06.7]} 39.
Kf3 {[%clk 0:00:05.1]} 39... h5 {[%clk 0:01:04.3]} 40. h3 {[%clk 0:00:05.1]}
40... Ne7 {[%clk 0:00:58.8]} 41. g4 {[%clk 0:00:04.7]} 41... Rc4 {[%clk
0:00:56]} 42. Be3 {[%clk 0:00:01.7]} 42... Nd5 {[%clk 0:00:51.3]} 43. Ra7+
{[%clk 0:00:01.8]} 43... Kg8 {[%clk 0:00:51.2]} 44. Ra3 {[%clk 0:00:02]} 44...
h4 {[%clk 0:00:47.3]} 45. Bf2 {[%clk 0:00:01.6]} 45... Rxf4+ {[%clk 0:00:44.1]}
46. Kg2 {[%clk 0:00:02.2]} 46... g5 {[%clk 0:00:42.6]} 0-1